fUST/lending_fUST_20250804
["ID","MTS","AMOUNT","RATE_DAILY","PERIOD"]
[377289932,1754320793822,2133.67071689,0.00030299,2]
[377289933,1754320793848,2866.32928311,0.00030299,2]
[377289934,1754320798783,468.640905,0.00028846,2]
[377289935,1754320799091,315.27531951,0.0002885,2]
[377289936,1754320809335,5000.0,0.00030299,2]
[377289937,1754320824871,1349.75449238,0.00030299,2]
[377289938,1754320824899,3650.24550762,0.00030299,2]
[377289939,1754320833082,171.52,0.00027826,15]
[377289940,1754320833147,171.52,0.00027926,15]
[377289941,1754320833361,171.52,0.00028026,15]
[377289942,1754320833873,171.55,0.00028126,15]
[377289943,1754320835222,171.52,0.00027626,15]
[377289944,1754320835548,171.52,0.00027726,15]
[377289945,1754320840904,5000.0,0.00030299,2]
[377289946,1754320858771,320.60449238,0.00030299,2]
[377289947,1754320858806,4679.39550762,0.00030299,2]
[377289948,1754320875767,5000.0,0.00030299,2]
[377289949,1754320891721,320.60449238,0.00030299,2]
[377289950,1754320891748,4679.39550762,0.00030299,2]
[377289951,1754320907401,5000.0,0.00030299,2]
[377289952,1754320923868,320.60449238,0.00030299,2]
[377289953,1754320923896,4679.39550762,0.00030299,2]
[377289954,1754320939203,5000.0,0.00030299,2]
[377289955,1754320943039,164.148008,0.00029526,120]
[377289956,1754320954966,156.45648438,0.00030299,2]
[377289957,1754320954993,4843.54351562,0.00030299,2]
[377289958,1754320970660,5000.0,0.00030299,2]
[377289959,1754320972698,156.45648438,0.00029499,2]
[377289960,1754320972724,10000.0,0.00029499,2]
[377289961,1754320972748,10000.0,0.00029499,2]
[377289962,1754320972773,4743.54351562,0.00029499,2]
[377289963,1754320985917,5000.0,0.00030299,2]
[377289964,1754321001989,256.45648438,0.00030299,2]
[377289965,1754321100313,204.94823,0.00025778,2]
[377289966,1754321100693,204.94823,0.00026044,2]
[377289967,1754321101079,360.83851541,0.0002939,2]
[377289971,1754321161430,202.4,0.00025208,2]
[377289973,1754321168986,-4743.54351562,0.00030299,2]
[377289974,1754321169597,200.0,0.00026402,2]
[377289976,1754321180449,312.91296876,0.00030299,2]
[377289977,1754321180477,4687.08703124,0.00030299,2]
[377289978,1754321182616,200.0,0.00026802,2]
[377289979,1754321195815,5000.0,0.00030299,2]
[377289983,1754321208830,1691.64421446,0.00030367,30]
[377289984,1754321211119,112.91296876,0.00030299,2]
[377289985,1754321211147,4887.08703124,0.00030299,2]
[377289988,1754321227048,5000.0,0.00030299,2]
[377289989,1754321240588,112.91296876,0.00029962,2]
[377289990,1754321240617,335.33578024,0.00029962,2]
[377289991,1754321242418,5000.0,0.00030299,2]
[377289994,1754321260325,4664.66421976,0.00030299,2]
[377289995,1754321260354,335.33578024,0.00030299,2]
[377290019,1754321263170,1085.93977996,0.0003013,2]
[377290020,1754321269528,621.10574217,0.00030299,2]
[377290021,1754321274218,250.63370421,0.000209,2]
[377290022,1754321274385,7706.98499342,0.00018,2]
[377290023,1754321274412,10000.0,0.00018,2]
[377290024,1754321274439,10000.0,0.00018,2]
[377290025,1754321274466,10000.0,0.00018,2]
[377290026,1754321274492,10000.0,0.00018,2]
[377290027,1754321274521,10000.0,0.00018,2]
[377290028,1754321274548,10000.0,0.00018,2]
[377290029,1754321274583,9327.54704891,0.00018,2]
[377290030,1754321278502,672.45295109,0.00018,2]
[377290031,1754321278532,2997.00197827,0.00018,2]
[377290032,1754321278648,5000.0,0.00030299,2]
[377290033,1754321291582,212.1712823,0.00029364,2]
[377290035,1754321295683,1790.82673943,0.00030299,2]
[377290036,1754321295713,3209.17326057,0.00030299,2]
[377290038,1754321303486,2502.72867098,0.0002822,2]
[377290039,1754321305408,910.133784,0.00030267,2]
[377290040,1754321306005,270.81646805,0.00021,2]
[377290051,1754321310391,1123.67213978,0.00024656,2]
[377290052,1754321312664,1983.47567662,0.00030299,2]
[377290053,1754321312690,3016.52432338,0.00030299,2]
[377290055,1754321320402,6983.47567662,0.0002,2]
[377290056,1754321320428,10000.0,0.0002,2]
[377290057,1754321320465,10000.0,0.0002,2]
[377290058,1754321320493,10000.0,0.0002,2]
[377290059,1754321320520,10000.0,0.0002,2]
[377290060,1754321320551,9006.6629677,0.0002,2]
[377290061,1754321321474,993.3370323,0.0002,2]
[377290062,1754321321501,199.1146921,0.0002,2]
[377290063,1754321321524,12003.1033998,0.0002,2]
[377290068,1754321327623,1907.72610607,0.00021,2]
[377290069,1754321329319,604.0,0.00025,5]
[377290070,1754321329760,1000.0,0.00026,2]
[377290071,1754321330093,5000.0,0.0003,2]
[377290072,1754321330247,34729.3586253,0.0002465,2]
[377290074,1754321331744,515.8933849,0.0003,30]
[377290075,1754321340324,1764.69227979,0.00025205,2]
[377290076,1754321347336,5000.0,0.0003,2]
[377290077,1754321361282,400.34,0.0003,2]
[377290078,1754321365222,5000.0,0.0003,2]
[377290079,1754321365793,273.781526,0.00028199,2]
[377290080,1754321365825,123.77481138,0.00028199,2]
[377290081,1754321371322,10000.0,0.00029218,2]
[377290085,1754321382280,5000.0,0.0003,2]
[377290086,1754321398131,5000.0,0.0003,2]
[377290087,1754321403318,395.71864645,0.00028623,2]
[377290088,1754321403510,152.97,0.00027725,15]
[377290089,1754321403585,152.97,0.00027825,15]
[377290090,1754321403636,152.97,0.00027925,15]
[377290091,1754321403860,152.97,0.00028025,15]
[377290092,1754321403898,152.97,0.00028225,15]
[377290093,1754321404048,152.97,0.00028325,15]
[377290094,1754321404198,152.97,0.00028425,15]
[377290095,1754321404323,152.97,0.00028525,15]
[377290096,1754321404418,152.97,0.00028725,15]
[377290097,1754321404510,153.03,0.00028825,15]
[377290099,1754321406421,152.97,0.00028625,15]
[377290100,1754321408871,152.97,0.00027625,15]
[377290101,1754321409206,152.97,0.00028125,15]
[377290102,1754321413471,5000.0,0.0003,2]
[377290103,1754321429862,5000.0,0.0003,2]
[377290104,1754321430976,266.51366233,0.00025865,2]
[377290117,1754321434791,-300.0,0.00030129,2]
[377290118,1754321434800,-400.0,0.00030129,2]
[377290119,1754321434811,-21202.3214383,0.0003013,5]
[377290120,1754321434821,-308.0,0.000302,2]
[377290121,1754321434830,-477.94298683,0.00030266,2]
[377290122,1754321434840,-500.0,0.00030266,2]
[377290123,1754321434850,-500.0,0.00030266,2]
[377290124,1754321434859,-500.0,0.00030266,2]
[377290125,1754321434869,-620.0,0.00030266,2]
[377290126,1754321434879,-500.0,0.00030266,2]
[377290127,1754321434888,-500.0,0.00030266,2]
[377290128,1754321434899,-500.0,0.00030266,2]
[377290129,1754321434908,-500.0,0.00030266,2]
[377290130,1754321434918,-500.0,0.00030266,2]
[377290131,1754321434927,-500.0,0.00030266,2]
[377290132,1754321434938,-500.0,0.00030266,2]
[377290134,1754321434947,-287.69244646,0.00030266,2]
[377290135,1754321434968,-212.30755354,0.00030266,2]
[377290136,1754321434977,-500.0,0.00030266,2]
[377290137,1754321434987,-500.0,0.00030266,2]
[377290138,1754321434996,-500.0,0.00030266,2]
[377290139,1754321435006,-500.0,0.00030266,2]
[377290140,1754321435015,-500.0,0.00030266,2]
[377290141,1754321435025,-622.77824713,0.00030266,2]
[377290142,1754321435034,-500.0,0.00030266,2]
[377290143,1754321435044,-500.0,0.00030266,2]
[377290144,1754321435055,-500.0,0.00030266,2]
[377290145,1754321435065,-500.0,0.00030266,2]
[377290146,1754321435074,-47.53419332,0.00030266,2]
[377290151,1754321438356,-452.46580668,0.00030266,2]
[377290152,1754321438366,-500.0,0.00030266,2]
[377290153,1754321438376,-500.0,0.00030266,2]
[377290154,1754321438386,-500.0,0.00030266,2]
[377290155,1754321438396,-500.0,0.00030266,2]
[377290156,1754321438405,-500.0,0.00030266,2]
[377290157,1754321438415,-500.0,0.00030266,2]
[377290158,1754321438424,-471.34697557,0.00030266,2]
[377290159,1754321438434,-500.0,0.00030266,2]
[377290161,1754321438443,-500.0,0.00030266,2]
[377290163,1754321438455,-500.0,0.00030266,2]
[377290165,1754321438465,-500.0,0.00030266,2]
[377290167,1754321438475,-11841.21954607,0.00030267,2]
[377290169,1754321438485,-160.181,0.00030363,25]
[377290171,1754321438494,-871.0537482,0.00030365,2]
[377290173,1754321438505,-25085.16496819,0.00030365,20]
[377290175,1754321438514,-262850.02673732,0.00030365,20]
[377290177,1754321438526,-2164.2323356,0.00030365,20]
[377290179,1754321438538,-22991.00000001,0.00030365,20]
[377290354,1754321440572,-1776.38944825,0.00030365,20]
[377290404,1754321441045,-2388.1972496,0.00030365,20]
[377290617,1754321443402,-290.97579448,0.00030265,2]
[377290619,1754321443412,-11324.02420552,0.00030365,20]
[377290621,1754321443425,-532.83535153,0.00030365,20]
[377290626,1754321443467,-1009.34486268,0.00030365,20]
[377290769,1754321445859,5000.0,0.0003,2]
[377290831,1754321446447,-500.0,0.00030266,2]
[377290833,1754321446457,-500.0,0.00030266,2]
[377290835,1754321446468,-500.0,0.00030266,2]
[377290837,1754321446478,-500.0,0.00030266,2]
[377290839,1754321446488,-500.0,0.00030266,2]
[377290841,1754321446498,-500.0,0.00030266,2]
[377290843,1754321446507,-500.0,0.00030266,2]
[377290845,1754321446517,-500.0,0.00030266,2]
[377290847,1754321446527,-500.0,0.00030266,2]
[377290849,1754321446537,-500.0,0.00030266,2]
[377290851,1754321446546,-219.26,0.00030355,10]
[377290853,1754321446556,-2468245.23939792,0.00030365,20]
[377290855,1754321446568,-12001.0221666,0.00030365,20]
[377291010,1754321448159,-0.00625577,0.00030365,20]
[377291747,1754321460546,6000.0,0.00017,2]
[377291748,1754321461375,5000.0,0.0003,2]
[377291749,1754321474708,156.504924,0.0002915,20]
[377291750,1754321477408,5000.0,0.00030151,2]
[377291751,1754321493035,3863.87921474,0.00030151,2]
[377291752,1754321521768,8245.27,0.00030365,30]
[377291753,1754321571200,-152.26,0.00030355,10]
[377291754,1754321571225,-180.0,0.00030364,2]
[377291755,1754321571250,-291.41980524,0.00030364,2]
[377291756,1754321571279,-500.0,0.00030364,2]
[377291757,1754321571308,-500.0,0.00030364,2]
[377291758,1754321571338,-500.0,0.00030364,2]
[377291759,1754321571366,-500.0,0.00030364,2]
[377291760,1754321571393,-347.13469756,0.00030364,2]
[377291761,1754321571415,-435.5268741,0.00030365,2]
[377291762,1754321579337,796.367061,0.00030265,2]
[377291763,1754321579395,1372.2915621,0.00030151,7]
[377291764,1754321579426,979.61586126,0.00030151,7]
[377291765,1754321579452,10000.0,0.00030151,7]
[377291766,1754321579478,10000.0,0.00030151,7]
[377291767,1754321579504,2913.02539453,0.00030151,7]
[377291768,1754321615187,193.185479,0.00029962,2]
[377291769,1754321645345,-157.34,0.00030255,10]
[377291770,1754321645368,-786.71,0.00030255,10]
[377291771,1754321645393,-4655.95,0.00030262,2]
[377291772,1754321654430,302.23872553,0.0003,2]
[377291773,1754321667110,265.03755826,0.00028265,2]
[377291774,1754321703225,2861.0,0.0003001,2]
[377291775,1754321705035,296.78898484,0.00028751,2]
[377291776,1754321722370,-1211.36381561,0.00030262,2]
[377291777,1754321722393,-400.0,0.00030263,2]
[377291778,1754321722414,-300.0,0.00030263,2]
[377291779,1754321722436,-276.63618439,0.00030263,2]
[377291781,1754321749752,223.59466,0.00030362,120]
[377291783,1754321792590,-123.36381561,0.00030263,2]
[377291784,1754321792617,-500.0,0.00030264,2]
[377291785,1754321792641,-500.0,0.00030264,2]
[377291786,1754321792669,-500.0,0.00030264,2]
[377291787,1754321792701,-500.0,0.00030264,2]
[377291788,1754321792725,-500.0,0.00030264,2]
[377291789,1754321792755,-430.0,0.00030264,2]
[377291790,1754321792782,-500.0,0.00030264,2]
[377291791,1754321792807,-500.0,0.00030264,2]
[377291792,1754321792834,-500.0,0.00030264,2]
[377291793,1754321792863,-205.23718862,0.00030264,2]
[377291794,1754321792887,-500.0,0.00030264,2]
[377291795,1754321792913,-500.0,0.00030264,2]
[377291796,1754321792938,-500.0,0.00030264,2]
[377291797,1754321792964,-500.0,0.00030264,2]
[377291798,1754321792990,-500.0,0.00030264,2]
[377291799,1754321793016,-334.52917121,0.00030264,2]
[377291800,1754321793044,-500.0,0.00030264,2]
[377291801,1754321793070,-402.56582879,0.00030264,2]
[377291802,1754321793095,-499.99999999,0.00030264,2]
[377291803,1754321793123,-500.0,0.00030264,2]
[377291804,1754321793148,-9734.30399578,0.00030265,2]
[377291805,1754321806318,3168.72385784,0.00030151,2]
[377291806,1754321806344,1831.27614216,0.00030151,2]
[377291807,1754321828669,155.032681,0.00029758,20]
[377291808,1754321855879,164.148008,0.00029962,120]
[377291809,1754321869941,164.754671,0.00013699,2]
[377291810,1754321870146,164.754671,0.00020548,2]
[377291811,1754321870377,164.754671,0.00027397,2]
[377291813,1754321876434,-168.41790488,0.00030163,2]
[377291814,1754321876458,-696.82117841,0.00030173,2]
[377291815,1754321876485,-1600.0,0.00030263,2]
[377291816,1754321876507,-160.0,0.00030263,2]
[377291817,1754321876531,-500.0,0.00030264,2]
[377291818,1754321876556,-500.0,0.00030264,2]
[377291819,1754321876580,-500.0,0.00030264,2]
[377291820,1754321876606,-500.0,0.00030264,2]
[377291821,1754321876631,-500.0,0.00030264,2]
[377291822,1754321876656,-500.0,0.00030264,2]
[377291823,1754321876681,-500.0,0.00030264,2]
[377291824,1754321876707,-500.0,0.00030264,2]
[377291825,1754321876730,-500.0,0.00030264,2]
[377291826,1754321876755,-525.0,0.00030264,2]
[377291827,1754321876777,-537.15651705,0.00030264,2]
[377291828,1754321876800,-500.0,0.00030264,2]
[377291829,1754321876823,-500.0,0.00030264,2]
[377291830,1754321876846,-448.01608907,0.00030264,2]
[377291831,1754321876867,-336.68623529,0.00030264,2]
[377291832,1754321876894,-500.0,0.00030264,2]
[377291833,1754321876920,-500.0,0.00030264,2]
[377291834,1754321876946,-525.0,0.00030264,2]
[377291835,1754321876972,-500.0,0.00030264,2]
[377291836,1754321876999,-500.0,0.00030264,2]
[377291837,1754321877025,-375.30057698,0.00030264,2]
[377291838,1754321877051,-500.0,0.00030264,2]
[377291839,1754321877074,-500.0,0.00030264,2]
[377291840,1754321877097,-472.72386989,0.00030264,2]
[377291841,1754321877120,-500.0,0.00030264,2]
[377291842,1754321877145,-500.0,0.00030264,2]
[377291843,1754321877167,-471.0,0.00030265,120]
[377291844,1754321877189,-10451.87762843,0.00030265,2]
[377291845,1754321880688,5000.0,0.00030151,2]
[377291846,1754321895012,2355.27915584,0.00030151,7]
[377291847,1754321895039,4670.37780826,0.00030151,7]
[377291848,1754321898608,5000.0,0.00030151,2]
[377291849,1754321907280,154.34,0.00029758,30]
[377291850,1754321907703,154.34,0.00030137,30]
[377291851,1754321915319,20.94219174,0.00030151,2]
[377291852,1754321915352,4979.05780826,0.00030151,2]
[377291853,1754321931190,5000.0,0.00030151,2]
[377291854,1754321946663,20.94219174,0.00030151,2]
[377291855,1754321946692,1673.97012512,0.00030151,2]
[377291856,1754321948094,-203.0,0.00030173,2]
[377291857,1754321968737,176.6917055,0.00028265,2]
[377291858,1754321976126,174.41,0.0002762,15]
[377291859,1754322007257,356.1467818,0.00029348,2]
[377291860,1754322055732,5000.0,0.0003036,30]
[377291861,1754322072850,153.980536,0.00029758,20]
[377291862,1754322093947,400.0,0.00030137,120]
[377291863,1754322127206,1000.0,0.0003036,30]
[377291864,1754322145518,224.124375,0.00029232,2]
[377291865,1754322168307,203.46652824,0.00030073,2]
[377291866,1754322211205,6637.20994834,0.00030151,7]
[377291867,1754322211232,1931.99522055,0.00030151,7]
[377291868,1754322235007,8068.00477945,0.00029229,2]
[377291869,1754322235033,10000.0,0.00029229,2]
[377291870,1754322235059,6831.99522055,0.00029229,2]
[377291871,1754322270402,1976.49027475,0.00028265,2]
[377291872,1754322279541,150.0,0.00026575,30]
[377291873,1754322279980,150.0,0.00026489,30]
[377291874,1754322289308,184.4,0.0002955,30]
[377291875,1754322289726,184.4,0.00029881,30]
[377291876,1754322290133,184.4,0.00030137,30]
[377291878,1754322354681,153.86,0.00027836,15]
[377291879,1754322354727,153.86,0.00027636,15]
[377291880,1754322355070,30.5945047,0.00028136,15]
[377291881,1754322355100,123.2654953,0.00028136,15]
[377291882,1754322355307,153.86,0.00028236,15]
[377291883,1754322355343,153.86,0.00028336,15]
[377291884,1754322355526,153.86,0.00028436,15]
[377291885,1754322355560,153.86,0.00028536,15]
[377291886,1754322355658,153.86,0.00028636,15]
[377291887,1754322355722,153.86,0.00028736,15]
[377291888,1754322355768,153.86,0.00028836,15]
[377291889,1754322355937,153.86,0.00028936,15]
[377291890,1754322356006,153.86,0.00029036,15]
[377291891,1754322356061,153.86,0.00029136,15]
[377291892,1754322356120,153.86,0.00029236,15]
[377291893,1754322356247,153.86,0.00029336,15]
[377291894,1754322356298,153.86,0.00029436,15]
[377291895,1754322356352,153.86,0.00029536,15]
[377291896,1754322356440,153.86,0.00029636,15]
[377291897,1754322356612,153.91569107,0.00029736,15]
[377291898,1754322357993,153.86,0.00027536,15]
[377291899,1754322358288,153.86,0.00027736,15]
[377291900,1754322358597,153.86,0.00028036,15]
[377291901,1754322358954,153.86,0.00027936,15]
[377291902,1754322398853,150.0,0.00027565,2]
[377291904,1754322434838,800.0,0.00030136,2]
[377291905,1754322438670,609.7185311,0.00030145,2]
[377291906,1754322452682,1728.2811549,0.00029962,2]
[377291913,1754322571649,1526.53372786,0.00028165,2]
[377291914,1754322595555,150.0,0.00026575,30]
[377291915,1754322596475,150.0,0.00026489,30]
[377291916,1754322599182,1684.94539977,0.0002699,2]
[377291917,1754322599239,4768.22712839,0.0002699,2]
[377291918,1754322609540,213.68806908,0.0002925,2]
[377291958,1754322632670,-400.0,0.00030154,2]
[377291960,1754322632680,-400.0,0.00030154,2]
[377291962,1754322632690,-400.0,0.00030154,2]
[377291964,1754322632700,-1600.0,0.00030154,2]
[377291966,1754322632710,-3231.26280231,0.00030155,2]
[377291968,1754322632721,-5665.33149443,0.00030155,2]
[377291970,1754322632731,-1423.80454455,0.0003016,2]
[377291972,1754322632743,-1807.45825772,0.0003016,2]
[377291974,1754322632752,-782.24,0.00030162,10]
[377291976,1754322632762,-3231.26280227,0.00030164,2]
[377291978,1754322632772,-1955.07191042,0.00030166,2]
[377291980,1754322632784,-377.77915426,0.00030166,2]
[377291988,1754322632874,-3332.48042974,0.00030166,2]
[377291990,1754322632884,-3231.26280227,0.00030169,2]
[377291992,1754322632894,-500.0,0.00030172,2]
[377291994,1754322632903,-611.32910023,0.00030172,2]
[377291996,1754322632914,-500.0,0.00030172,2]
[377291998,1754322632926,-586.04333938,0.00030172,2]
[377292001,1754322632936,-377.24601794,0.00030172,2]
[377292003,1754322632947,-500.0,0.00030172,2]
[377292004,1754322632957,-378.06286987,0.00030172,2]
[377292005,1754322632967,-500.0,0.00030172,2]
[377292006,1754322632977,-500.0,0.00030172,2]
[377292007,1754322632986,-500.0,0.00030172,2]
[377292008,1754322632997,-483.31098175,0.00030172,2]
[377292009,1754322633007,-500.0,0.00030172,2]
[377292010,1754322633016,-500.0,0.00030172,2]
[377292011,1754322633026,-500.0,0.00030172,2]
[377292012,1754322633035,-500.0,0.00030172,2]
[377292013,1754322633045,-500.0,0.00030172,2]
[377292014,1754322633055,-500.0,0.00030172,2]
[377292015,1754322633065,-500.0,0.00030172,2]
[377292016,1754322633075,-500.0,0.00030172,2]
[377292017,1754322633085,-500.0,0.00030172,2]
[377292018,1754322633095,-500.0,0.00030172,2]
[377292019,1754322633105,-500.0,0.00030172,2]
[377292020,1754322633115,-462.03102166,0.00030172,2]
[377292021,1754322633124,-500.0,0.00030172,2]
[377292022,1754322633134,-500.0,0.00030172,2]
[377292023,1754322633145,-500.0,0.00030172,2]
[377292024,1754322633154,-500.0,0.00030172,2]
[377292025,1754322633164,-500.0,0.00030172,2]
[377292026,1754322633174,-500.0,0.00030172,2]
[377292027,1754322633184,-500.0,0.00030172,2]
[377292028,1754322633193,-500.0,0.00030172,2]
[377292029,1754322633203,-500.0,0.00030172,2]
[377292030,1754322633214,-500.0,0.00030172,2]
[377292031,1754322633224,-500.0,0.00030172,2]
[377292032,1754322633233,-500.0,0.00030172,2]
[377292033,1754322633243,-500.0,0.00030172,2]
[377292034,1754322633252,-500.0,0.00030172,2]
[377292035,1754322633264,-391.24797766,0.00030172,2]
[377292036,1754322633274,-500.0,0.00030172,2]
[377292037,1754322633283,-500.0,0.00030172,2]
[377292038,1754322633293,-500.0,0.00030172,2]
[377292039,1754322633303,-500.0,0.00030172,2]
[377292040,1754322633313,-500.0,0.00030172,2]
[377292041,1754322633323,-500.0,0.00030172,2]
[377292042,1754322633333,-500.0,0.00030172,2]
[377292043,1754322633343,-500.0,0.00030172,2]
[377292044,1754322633353,-500.0,0.00030172,2]
[377292045,1754322633363,-500.0,0.00030172,2]
[377292046,1754322633372,-500.0,0.00030172,2]
[377292047,1754322633382,-500.0,0.00030172,2]
[377292048,1754322633393,-500.0,0.00030172,2]
[377292049,1754322633402,-500.0,0.00030172,2]
[377292050,1754322633413,-500.0,0.00030172,2]
[377292051,1754322633423,-500.0,0.00030172,2]
[377292052,1754322633433,-500.0,0.00030172,2]
[377292053,1754322633442,-500.0,0.00030172,2]
[377292055,1754322633452,-500.0,0.00030172,2]
[377292057,1754322633462,-500.0,0.00030172,2]
[377292058,1754322633473,-500.0,0.00030172,2]
[377292059,1754322633483,-500.0,0.00030172,2]
[377292060,1754322633493,-500.0,0.00030172,2]
[377292061,1754322633502,-500.0,0.00030172,2]
[377292062,1754322633512,-500.0,0.00030172,2]
[377292063,1754322633521,-500.0,0.00030172,2]
[377292064,1754322633531,-500.0,0.00030172,2]
[377292065,1754322633540,-500.0,0.00030172,2]
[377292066,1754322633550,-500.0,0.00030172,2]
[377292067,1754322633560,-500.0,0.00030172,2]
[377292068,1754322633570,-500.0,0.00030172,2]
[377292069,1754322633580,-500.0,0.00030172,2]
[377292070,1754322633589,-500.0,0.00030172,2]
[377292071,1754322633599,-500.0,0.00030172,2]
[377292072,1754322633609,-500.0,0.00030172,2]
[377292073,1754322633619,-500.0,0.00030172,2]
[377292074,1754322633629,-500.0,0.00030172,2]
[377292075,1754322633639,-239.03293424,0.00030172,2]
[377292076,1754322633648,-500.0,0.00030172,2]
[377292077,1754322633657,-500.0,0.00030172,2]
[377292078,1754322633667,-500.0,0.00030172,2]
[377292079,1754322633677,-500.0,0.00030172,2]
[377292080,1754322633687,-500.0,0.00030172,2]
[377292081,1754322633697,-500.0,0.00030172,2]
[377292082,1754322633707,-500.0,0.00030172,2]
[377292083,1754322633718,-500.0,0.00030172,2]
[377292084,1754322633728,-500.0,0.00030172,2]
[377292085,1754322633738,-500.0,0.00030172,2]
[377292086,1754322633749,-500.0,0.00030172,2]
[377292087,1754322633759,-500.0,0.00030172,2]
[377292088,1754322633769,-500.0,0.00030172,2]
[377292089,1754322633779,-500.0,0.00030172,2]
[377292090,1754322633789,-500.0,0.00030172,2]
[377292091,1754322633799,-500.0,0.00030172,2]
[377292092,1754322633809,-500.0,0.00030172,2]
[377292093,1754322633820,-500.0,0.00030172,2]
[377292094,1754322633830,-500.0,0.00030172,2]
[377292095,1754322633840,-500.0,0.00030172,2]
[377292096,1754322633850,-500.0,0.00030172,2]
[377292097,1754322633860,-500.0,0.00030172,2]
[377292098,1754322633870,-500.0,0.00030172,2]
[377292099,1754322633881,-500.0,0.00030172,2]
[377292100,1754322633891,-500.0,0.00030172,2]
[377292101,1754322633901,-500.0,0.00030172,2]
[377292102,1754322633912,-500.0,0.00030172,2]
[377292103,1754322634053,-500.0,0.00030172,2]
[377292104,1754322634063,-500.0,0.00030172,2]
[377292105,1754322634073,-500.0,0.00030172,2]
[377292106,1754322634083,-500.0,0.00030172,2]
[377292107,1754322634093,-500.0,0.00030172,2]
[377292108,1754322634103,-500.0,0.00030172,2]
[377292109,1754322634113,-500.0,0.00030172,2]
[377292110,1754322634122,-500.0,0.00030172,2]
[377292111,1754322634132,-500.0,0.00030172,2]
[377292112,1754322634142,-556.46246591,0.00030172,2]
[377292113,1754322634152,-500.0,0.00030172,2]
[377292114,1754322634162,-500.0,0.00030172,2]
[377292115,1754322634172,-500.0,0.00030172,2]
[377292116,1754322634182,-500.0,0.00030172,2]
[377292117,1754322634192,-500.0,0.00030172,2]
[377292118,1754322634202,-500.0,0.00030172,2]
[377292119,1754322634212,-500.0,0.00030172,2]
[377292120,1754322634223,-500.0,0.00030172,2]
[377292121,1754322634233,-381.14558868,0.00030172,2]
[377292122,1754322634242,-500.0,0.00030172,2]
[377292123,1754322634252,-500.0,0.00030172,2]
[377292124,1754322634261,-500.0,0.00030172,2]
[377292125,1754322634271,-500.0,0.00030172,2]
[377292126,1754322634280,-500.0,0.00030172,2]
[377292127,1754322634290,-500.0,0.00030172,2]
[377292128,1754322634300,-500.0,0.00030172,2]
[377292129,1754322634310,-500.0,0.00030172,2]
[377292130,1754322634320,-320.635,0.00030172,2]
[377292131,1754322634330,-500.0,0.00030172,2]
[377292132,1754322634339,-500.0,0.00030172,2]
[377292133,1754322634349,-500.0,0.00030172,2]
[377292134,1754322634359,-500.0,0.00030172,2]
[377292135,1754322634368,-500.0,0.00030172,2]
[377292136,1754322634378,-500.0,0.00030172,2]
[377292137,1754322634389,-500.0,0.00030172,2]
[377292138,1754322634398,-500.0,0.00030172,2]
[377292139,1754322634409,-459.10506527,0.00030172,2]